[Event "*** Titled Tuesday Blitz"]
[Site "Chess.com"]
[Date "2019.08.06"]
[Round "7"]
[White "vugarrasulov"]
[Black "Polish_fighter3000"]
[Result "0-1"]
[WhiteElo "2823"]
[BlackElo "2970"]
[TimeControl "180+2"]
[EndTime "14:38:52 PDT"]
[Termination "Polish_fighter3000 won by resignation"]

1. e4 {[%clk 0:03:01.9]} 1... d5 {[%clk 0:02:59.5]} 2. exd5 {[%clk 0:03:02.8]}
2... Qxd5 {[%clk 0:03:01.4]} 3. Nc3 {[%clk 0:03:03.8]} 3... Qd8 {[%clk
0:03:02.9]} 4. d4 {[%clk 0:03:04.4]} 4... g6 {[%clk 0:03:04.5]} 5. Bf4 {[%clk
0:03:02.4]} 5... Bg7 {[%clk 0:03:02.8]} 6. Nf3 {[%clk 0:03:03.2]} 6... Nf6
{[%clk 0:03:03.5]} 7. h3 {[%clk 0:03:03.2]} 7... O-O {[%clk 0:03:04.1]} 8. Qd2
{[%clk 0:03:02.7]} 8... Nc6 {[%clk 0:03:03.9]} 9. O-O-O {[%clk 0:03:03.3]} 9...
Bf5 {[%clk 0:02:50.9]} 10. Bh6 {[%clk 0:03:03.6]} 10... Ne4 {[%clk 0:02:49.2]}
11. Nxe4 {[%clk 0:03:04]} 11... Bxe4 {[%clk 0:02:51.1]} 12. Bxg7 {[%clk
0:03:05.5]} 12... Kxg7 {[%clk 0:02:53]} 13. Ng5 {[%clk 0:03:02.7]} 13... Bf5
{[%clk 0:02:39]} 14. g4 {[%clk 0:03:00.4]} 14... Qd5 {[%clk 0:02:30.6]} 15. gxf5
{[%clk 0:02:53.5]} 15... Qxh1 {[%clk 0:02:25.6]} 16. d5 {[%clk 0:02:54.7]} 16...
Rad8 {[%clk 0:02:20]} 17. fxg6 {[%clk 0:02:52]} 17... hxg6 {[%clk 0:02:19.4]}
18. Qc3+ {[%clk 0:02:33.8]} 18... Kg8 {[%clk 0:02:20.4]} 19. Qg3 {[%clk
0:01:42]} 19... Rxd5 {[%clk 0:02:11.2]} 20. Bd3 {[%clk 0:01:43]} 20... Rxd3
{[%clk 0:01:56.1]} 21. cxd3 {[%clk 0:01:25.6]} 21... Qd5 {[%clk 0:01:49.5]} 22.
Qh4 {[%clk 0:01:26.7]} 22... Kg7 {[%clk 0:01:47.1]} 23. Qh7+ {[%clk 0:01:23.1]}
23... Kf6 {[%clk 0:01:48]} 24. Ne4+ {[%clk 0:01:17.5]} 24... Ke6 {[%clk
0:01:40.5]} 25. Qh6 {[%clk 0:01:07.2]} 25... Rd8 {[%clk 0:01:38.4]} 26. Qf4
{[%clk 0:01:04.8]} 26... Kd7 {[%clk 0:01:38.1]} 27. Nc3 {[%clk 0:01:01.6]} 27...
Qf5 {[%clk 0:01:37.8]} 28. Qg3 {[%clk 0:01:01.1]} 28... Nd4 {[%clk 0:01:35.9]}
29. Re1 {[%clk 0:00:58.2]} 29... f6 {[%clk 0:01:23.6]} 30. h4 {[%clk 0:00:47.7]}
30... e5 {[%clk 0:01:19.9]} 31. Kb1 {[%clk 0:00:48.9]} 31... Ke6 {[%clk
0:01:17.3]} 32. Ne4 {[%clk 0:00:49]} 32... Kf7 {[%clk 0:01:15]} 33. Qe3 {[%clk
0:00:44.9]} 33... Kg7 {[%clk 0:01:13.9]} 34. h5 {[%clk 0:00:45.4]} 34... Qxh5
{[%clk 0:01:12.8]} 35. f4 {[%clk 0:00:42.8]} 35... Qf3 {[%clk 0:01:06.6]} 36.
fxe5 {[%clk 0:00:43.9]} 36... fxe5 {[%clk 0:01:08.4]} 37. Qd2 {[%clk 0:00:44.7]}
37... Nf5 {[%clk 0:01:07.5]} 38. Nc5 {[%clk 0:00:43]} 38... Rd5 {[%clk
0:01:04.9]} 39. Rc1 {[%clk 0:00:33.6]} 39... Rd6 {[%clk 0:00:42.8]} 40. Ka1
{[%clk 0:00:20.3]} 40... b6 {[%clk 0:00:41.5]} 41. Na6 {[%clk 0:00:12.1]} 41...
c5 {[%clk 0:00:42.2]} 42. Nc7 {[%clk 0:00:13.1]} 42... Qc6 {[%clk 0:00:38.3]}
43. Qe1 {[%clk 0:00:10.6]} 43... Kf6 {[%clk 0:00:16.2]} 44. d4 {[%clk
0:00:11.9]} 44... Rxd4 {[%clk 0:00:16.1]} 45. Na6 {[%clk 0:00:13]} 45... Qe4
{[%clk 0:00:15.4]} 46. Qg1 {[%clk 0:00:11.3]} 46... Qe3 {[%clk 0:00:15.7]} 47.
Qh1 {[%clk 0:00:11.7]} 47... Rh4 {[%clk 0:00:14.5]} 48. Qd1 {[%clk 0:00:12.4]}
48... Qd4 {[%clk 0:00:12.6]} 49. Qb3 {[%clk 0:00:13]} 49... Rh2 {[%clk
0:00:12.9]} 50. Nc7 {[%clk 0:00:13.7]} 50... e4 {[%clk 0:00:12.1]} 51. Qe6+
{[%clk 0:00:12]} 51... Kg5 {[%clk 0:00:12.9]} 52. Rb1 {[%clk 0:00:12.5]} 52...
e3 {[%clk 0:00:11.3]} 53. Nd5 {[%clk 0:00:13]} 53... e2 {[%clk 0:00:10.1]} 54.
Nc3 {[%clk 0:00:13.8]} 54... Qe3 {[%clk 0:00:08.5]} 55. Ne4+ {[%clk 0:00:11]}
55... Kf4 {[%clk 0:00:09.6]} 56. Qxg6 {[%clk 0:00:12.3]} 56... e1=Q {[%clk
0:00:10.5]} 57. Qg5+ {[%clk 0:00:13.7]} 57... Kxe4 {[%clk 0:00:11.7]} 58. Qg4+
{[%clk 0:00:15.2]} 58... Ke5 {[%clk 0:00:12]} 0-1

[Event "*** Titled Tuesday Blitz"]
[Site "Chess.com"]
[Date "2019.08.06"]
[Round "7"]
[White "nocnypako"]
[Black "GMKrikor"]
[Result "1/2-1/2"]
[WhiteElo "2588"]
[BlackElo "2658"]
[TimeControl "180+2"]
[EndTime "14:38:54 PDT"]
[Termination "Game drawn - insufficient material"]

1. d4 {[%clk 0:03:01.9]} 1... Nf6 {[%clk 0:03:00.3]} 2. c4 {[%clk 0:03:02.4]}
2... e6 {[%clk 0:02:52.4]} 3. Nc3 {[%clk 0:02:51.2]} 3... d5 {[%clk 0:02:37.5]}
4. cxd5 {[%clk 0:02:51.5]} 4... exd5 {[%clk 0:02:39.4]} 5. Bg5 {[%clk
0:02:52.3]} 5... Be7 {[%clk 0:02:40.8]} 6. e3 {[%clk 0:02:53.8]} 6... c6 {[%clk
0:02:39.2]} 7. Bd3 {[%clk 0:02:55.3]} 7... Nbd7 {[%clk 0:02:39.7]} 8. Nge2
{[%clk 0:02:56.3]} 8... Nh5 {[%clk 0:02:38.7]} 9. Bxe7 {[%clk 0:02:55.5]} 9...
Qxe7 {[%clk 0:02:40.6]} 10. Qc2 {[%clk 0:02:56]} 10... Nhf6 {[%clk 0:02:40.7]}
11. O-O-O {[%clk 0:02:56.5]} 11... Nb6 {[%clk 0:02:28.3]} 12. Kb1 {[%clk
0:02:52.4]} 12... O-O {[%clk 0:02:24.5]} 13. Ng3 {[%clk 0:02:43.6]} 13... Be6
{[%clk 0:02:21]} 14. h3 {[%clk 0:02:40.2]} 14... c5 {[%clk 0:02:18.5]} 15. dxc5
{[%clk 0:02:27.6]} 15... Qxc5 {[%clk 0:02:18.7]} 16. Nb5 {[%clk 0:02:29.2]}
16... Qe7 {[%clk 0:02:09.7]} 17. Nd4 {[%clk 0:02:24.3]} 17... Rac8 {[%clk
0:02:03.1]} 18. Qe2 {[%clk 0:02:23.3]} 18... Nc4 {[%clk 0:01:59.6]} 19. Rc1
{[%clk 0:02:18.7]} 19... Qb4 {[%clk 0:01:55.3]} 20. Ka1 {[%clk 0:02:19.6]} 20...
Rc5 {[%clk 0:01:44]} 21. Rc3 {[%clk 0:02:17.3]} 21... Rfc8 {[%clk 0:01:01.8]}
22. Rhc1 {[%clk 0:02:16.5]} 22... g6 {[%clk 0:00:45.3]} 23. Qc2 {[%clk
0:01:26.3]} 23... b6 {[%clk 0:00:34.7]} 24. Qb3 {[%clk 0:01:24.4]} 24... Qxb3
{[%clk 0:00:29.3]} 25. Nxb3 {[%clk 0:01:26.3]} 25... R5c7 {[%clk 0:00:27.4]} 26.
Ne2 {[%clk 0:01:27.5]} 26... Kf8 {[%clk 0:00:21.8]} 27. Ned4 {[%clk 0:01:28.3]}
27... Ke7 {[%clk 0:00:22.1]} 28. Nxe6 {[%clk 0:01:25.5]} 28... fxe6 {[%clk
0:00:22]} 29. Nd4 {[%clk 0:01:26.7]} 29... Kd7 {[%clk 0:00:21.5]} 30. Nf3 {[%clk
0:01:13.4]} 30... Kd6 {[%clk 0:00:19.8]} 31. b3 {[%clk 0:00:54.8]} 31... Na5
{[%clk 0:00:20.8]} 32. Rxc7 {[%clk 0:00:55.4]} 32... Rxc7 {[%clk 0:00:22.7]} 33.
Rxc7 {[%clk 0:00:55.5]} 33... Kxc7 {[%clk 0:00:24.6]} 34. Ne5 {[%clk 0:00:56]}
34... Kd6 {[%clk 0:00:21.4]} 35. f4 {[%clk 0:00:55.4]} 35... Nc6 {[%clk
0:00:16.5]} 36. Nxc6 {[%clk 0:00:56.1]} 36... Kxc6 {[%clk 0:00:18.4]} 37. Kb2
{[%clk 0:00:57.1]} 37... Kd6 {[%clk 0:00:19.5]} 38. Kc3 {[%clk 0:00:57.2]} 38...
e5 {[%clk 0:00:21.1]} 39. fxe5+ {[%clk 0:00:56.7]} 39... Kxe5 {[%clk 0:00:22]}
40. Kb4 {[%clk 0:00:57.9]} 40... d4 {[%clk 0:00:18.5]} 41. exd4+ {[%clk
0:00:56.9]} 41... Kxd4 {[%clk 0:00:20.4]} 42. Bf1 {[%clk 0:00:53.1]} 42... Nd5+
{[%clk 0:00:19.1]} 43. Kb5 {[%clk 0:00:54.1]} 43... Nc3+ {[%clk 0:00:20.6]} 44.
Ka6 {[%clk 0:00:55]} 44... Nxa2 {[%clk 0:00:20.1]} 45. Kxa7 {[%clk 0:00:56.2]}
45... Kc5 {[%clk 0:00:20.3]} 46. Kb7 {[%clk 0:00:56.2]} 46... b5 {[%clk
0:00:20.2]} 47. Kc7 {[%clk 0:00:56.2]} 47... Nc1 {[%clk 0:00:20.1]} 48. b4+
{[%clk 0:00:54.9]} 48... Kxb4 {[%clk 0:00:17]} 49. Kb6 {[%clk 0:00:55.2]} 49...
Kc3 {[%clk 0:00:13.9]} 50. Bxb5 {[%clk 0:00:52.9]} 50... Kd4 {[%clk 0:00:14.8]}
51. Kc6 {[%clk 0:00:52.3]} 51... Ke3 {[%clk 0:00:08.3]} 52. Kd6 {[%clk
0:00:51.4]} 52... Nb3 {[%clk 0:00:05.8]} 53. Ke7 {[%clk 0:00:48.7]} 53... Kf2
{[%clk 0:00:06.5]} 54. Bc6 {[%clk 0:00:32.8]} 54... Nd4 {[%clk 0:00:07.7]} 55.
Bb7 {[%clk 0:00:33.3]} 55... Nf5+ {[%clk 0:00:03.8]} 56. Kf6 {[%clk 0:00:33.4]}
56... Ne3 {[%clk 0:00:03.9]} 57. Kg7 {[%clk 0:00:23.3]} 57... Nxg2 {[%clk
0:00:05]} 58. Bxg2 {[%clk 0:00:23.1]} 58... Kxg2 {[%clk 0:00:06]} 59. Kxh7
{[%clk 0:00:22.7]} 59... g5 {[%clk 0:00:06.3]} 60. Kg6 {[%clk 0:00:23.6]} 60...
Kxh3 {[%clk 0:00:07.4]} 61. Kxg5 {[%clk 0:00:24.6]} 1/2-1/2

[Event "*** Titled Tuesday Blitz"]
[Site "Chess.com"]
[Date "2019.08.06"]
[Round "7"]
[White "Dhaydon19"]
[Black "GrandGlacier"]
[Result "0-1"]
[WhiteElo "2595"]
[BlackElo "2443"]
[TimeControl "180+2"]
[EndTime "14:38:57 PDT"]
[Termination "GrandGlacier won by resignation"]

1. d4 {[%clk 0:02:55.3]} 1... Nf6 {[%clk 0:03:00.7]} 2. c4 {[%clk 0:02:56.4]}
2... g6 {[%clk 0:03:01.3]} 3. Nf3 {[%clk 0:02:57.9]} 3... d5 {[%clk 0:03:02.4]}
4. g3 {[%clk 0:02:58.5]} 4... Bg7 {[%clk 0:03:02.8]} 5. cxd5 {[%clk 0:02:59.4]}
5... Nxd5 {[%clk 0:03:03.3]} 6. Bg2 {[%clk 0:03:01.3]} 6... O-O {[%clk
0:03:03.9]} 7. O-O {[%clk 0:03:03]} 7... Nb6 {[%clk 0:03:05.5]} 8. Nc3 {[%clk
0:03:04.5]} 8... Nc6 {[%clk 0:03:06.3]} 9. d5 {[%clk 0:03:05.8]} 9... Ne5 {[%clk
0:03:05.7]} 10. Nxe5 {[%clk 0:03:06.2]} 10... Bxe5 {[%clk 0:03:07.5]} 11. e4
{[%clk 0:03:07.7]} 11... e6 {[%clk 0:03:04.3]} 12. Bh6 {[%clk 0:03:06.5]} 12...
Bg7 {[%clk 0:02:40.4]} 13. Bxg7 {[%clk 0:03:06.9]} 13... Kxg7 {[%clk 0:02:41.6]}
14. Qd4+ {[%clk 0:03:07.1]} 14... f6 {[%clk 0:02:42.6]} 15. Rfd1 {[%clk
0:03:05.9]} 15... exd5 {[%clk 0:02:35.1]} 16. exd5 {[%clk 0:03:06.5]} 16... Bf5
{[%clk 0:02:34.1]} 17. Rac1 {[%clk 0:03:06.6]} 17... a6 {[%clk 0:02:33.3]} 18.
d6 {[%clk 0:03:03.3]} 18... Qxd6 {[%clk 0:02:32]} 19. Qxd6 {[%clk 0:03:03.5]}
19... cxd6 {[%clk 0:02:32.6]} 20. Bxb7 {[%clk 0:03:01.7]} 20... Ra7 {[%clk
0:02:33.4]} 21. Bg2 {[%clk 0:03:02.1]} 21... Rd8 {[%clk 0:02:31.2]} 22. Ne2
{[%clk 0:02:58.2]} 22... d5 {[%clk 0:02:23.2]} 23. Rc6 {[%clk 0:02:53.1]} 23...
Nc4 {[%clk 0:02:06.2]} 24. Rxc4 {[%clk 0:02:50.6]} 24... Re8 {[%clk 0:01:57.8]}
25. Bxd5 {[%clk 0:02:37.8]} 25... Rxe2 {[%clk 0:01:57.5]} 26. Rb4 {[%clk
0:02:37.7]} 26... Rd7 {[%clk 0:01:51.5]} 27. Kf1 {[%clk 0:02:23.2]} 27... Rc2
{[%clk 0:01:44]} 28. g4 {[%clk 0:01:38.7]} 28... Be6 {[%clk 0:01:32.9]} 29. Bf3
{[%clk 0:01:38.3]} 29... Rxd1+ {[%clk 0:01:11.6]} 30. Bxd1 {[%clk 0:01:40.2]}
30... Rc1 {[%clk 0:00:54.7]} 31. Ke2 {[%clk 0:01:38.4]} 31... Bxa2 {[%clk
0:00:53.3]} 32. b3 {[%clk 0:01:28.3]} 32... Rc6 {[%clk 0:00:52.9]} 33. Kd2
{[%clk 0:01:25.9]} 33... Bb1 {[%clk 0:00:53.3]} 34. Ra4 {[%clk 0:01:24.5]} 34...
f5 {[%clk 0:00:42.5]} 35. gxf5 {[%clk 0:01:24.7]} 35... Bxf5 {[%clk 0:00:42.6]}
36. Be2 {[%clk 0:01:25.5]} 36... Be6 {[%clk 0:00:42.7]} 37. b4 {[%clk
0:01:20.9]} 37... Bc4 {[%clk 0:00:42]} 38. Bf3 {[%clk 0:01:19.3]} 38... Rf6
{[%clk 0:00:39.3]} 39. Ke3 {[%clk 0:01:19.6]} 39... g5 {[%clk 0:00:37.2]} 40.
Ra5 {[%clk 0:01:18.6]} 40... Bb5 {[%clk 0:00:37.2]} 41. Bb7 {[%clk 0:01:07.6]}
41... Rb6 {[%clk 0:00:31.8]} 42. Bc8 {[%clk 0:01:07.9]} 42... Kf6 {[%clk
0:00:30.8]} 43. f4 {[%clk 0:01:04.5]} 43... h6 {[%clk 0:00:28.5]} 44. f5 {[%clk
0:00:59.2]} 44... Rd6 {[%clk 0:00:27.9]} 45. Ra2 {[%clk 0:00:54.9]} 45... Rd3+
{[%clk 0:00:26.2]} 46. Ke4 {[%clk 0:00:54.8]} 46... Rb3 {[%clk 0:00:27.3]} 47.
Rd2 {[%clk 0:00:44.8]} 47... Rxb4+ {[%clk 0:00:28.2]} 48. Kd5 {[%clk 0:00:45.7]}
48... Rf4 {[%clk 0:00:22.7]} 49. Kc5 {[%clk 0:00:44.7]} 49... Rxf5+ {[%clk
0:00:20.8]} 50. Bxf5 {[%clk 0:00:44.9]} 50... Kxf5 {[%clk 0:00:22.7]} 51. Kd4
{[%clk 0:00:45.7]} 51... h5 {[%clk 0:00:21.4]} 52. Ke3 {[%clk 0:00:46.6]} 52...
Kg4 {[%clk 0:00:22.2]} 53. Kf2 {[%clk 0:00:45.6]} 53... Kh3 {[%clk 0:00:22.8]}
54. Kg1 {[%clk 0:00:39.7]} 54... g4 {[%clk 0:00:19.6]} 55. Rd5 {[%clk
0:00:25.1]} 55... h4 {[%clk 0:00:20]} 56. Rh5 {[%clk 0:00:21.5]} 56... Be2
{[%clk 0:00:17.3]} 57. Kf2 {[%clk 0:00:18.1]} 57... g3+ {[%clk 0:00:17.1]} 58.
Kxe2 {[%clk 0:00:17.6]} 58... gxh2 {[%clk 0:00:17.3]} 0-1

[Event "*** Titled Tuesday Blitz"]
[Site "Chess.com"]
[Date "2019.08.06"]
[Round "7"]
[White "chessbia"]
[Black "vova-79"]
[Result "0-1"]
[WhiteElo "2233"]
[BlackElo "2462"]
[TimeControl "180+2"]
[EndTime "14:39:03 PDT"]
[Termination "vova-79 won by resignation"]

1. d4 {[%clk 0:03:01.9]} 1... d5 {[%clk 0:02:59.6]} 2. c4 {[%clk 0:03:03]} 2...
c6 {[%clk 0:02:59.8]} 3. Nf3 {[%clk 0:03:03.4]} 3... Nf6 {[%clk 0:03:00.2]} 4.
Nc3 {[%clk 0:03:04.5]} 4... e6 {[%clk 0:03:00.8]} 5. Bg5 {[%clk 0:03:03]} 5...
dxc4 {[%clk 0:03:01]} 6. a4 {[%clk 0:03:03.5]} 6... b5 {[%clk 0:02:59.9]} 7.
axb5 {[%clk 0:03:00.6]} 7... cxb5 {[%clk 0:02:57.1]} 8. Bxf6 {[%clk 0:02:58.8]}
8... gxf6 {[%clk 0:02:53.3]} 9. Nxb5 {[%clk 0:02:59.4]} 9... Qb6 {[%clk
0:02:51.8]} 10. Nc3 {[%clk 0:02:39.7]} 10... Qxb2 {[%clk 0:02:38]} 11. Qc1
{[%clk 0:02:40.3]} 11... Ba3 {[%clk 0:02:13.1]} 12. Na2 {[%clk 0:02:20.1]} 12...
Qb3 {[%clk 0:01:23.8]} 13. Qd1 {[%clk 0:02:08.2]} 13... Bb2 {[%clk 0:01:23]} 14.
Nd2 {[%clk 0:01:43.8]} 14... Qxd1+ {[%clk 0:01:20.5]} 15. Rxd1 {[%clk
0:01:43.7]} 15... c3 {[%clk 0:01:21]} 16. Nb3 {[%clk 0:01:28.1]} 16... Bb7
{[%clk 0:01:12.6]} 17. e3 {[%clk 0:01:00.6]} 17... Bd5 {[%clk 0:01:11.2]} 18.
Nbc1 {[%clk 0:00:56.4]} 18... Nd7 {[%clk 0:00:57.9]} 19. Nb4 {[%clk 0:00:43]}
19... a5 {[%clk 0:00:51.8]} 20. Nxd5 {[%clk 0:00:38.9]} 20... exd5 {[%clk
0:00:53.7]} 21. Bb5 {[%clk 0:00:32.4]} 21... Ke7 {[%clk 0:00:33.2]} 22. Nd3
{[%clk 0:00:21.6]} 22... Rab8 {[%clk 0:00:27.5]} 23. Bc6 {[%clk 0:00:21.3]}
23... Kd6 {[%clk 0:00:20.6]} 24. Ba4 {[%clk 0:00:20.4]} 24... Nb6 {[%clk
0:00:19.2]} 25. Bc2 {[%clk 0:00:20.8]} 25... a4 {[%clk 0:00:19.9]} 26. Ke2
{[%clk 0:00:19.8]} 26... a3 {[%clk 0:00:20.5]} 27. Nc5 {[%clk 0:00:17.9]} 27...
a2 {[%clk 0:00:18.6]} 28. Bb3 {[%clk 0:00:17.6]} 28... Ra8 {[%clk 0:00:17.4]}
29. e4 {[%clk 0:00:15.1]} 29... a1=Q {[%clk 0:00:14.4]} 30. Rxa1 {[%clk
0:00:15.5]} 30... Rxa1 {[%clk 0:00:14.6]} 31. Rxa1 {[%clk 0:00:11.4]} 31... Bxa1
{[%clk 0:00:16.5]} 32. exd5 {[%clk 0:00:11]} 32... Nxd5 {[%clk 0:00:16.1]} 33.
Ne4+ {[%clk 0:00:12.3]} 33... Kc6 {[%clk 0:00:13.4]} 34. g3 {[%clk 0:00:06.7]}
34... f5 {[%clk 0:00:11.1]} 35. Ng5 {[%clk 0:00:03.4]} 35... Nb4 {[%clk
0:00:09.8]} 36. Nxf7 {[%clk 0:00:03.3]} 36... Re8+ {[%clk 0:00:09.7]} 37. Ne5+
{[%clk 0:00:03.2]} 37... Kd6 {[%clk 0:00:09]} 38. Kd1 {[%clk 0:00:02.8]} 38...
c2+ {[%clk 0:00:09.2]} 39. Bxc2 {[%clk 0:00:03.5]} 39... Nxc2 {[%clk 0:00:09.7]}
40. Kxc2 {[%clk 0:00:05.1]} 40... Bxd4 {[%clk 0:00:09.8]} 41. Nf7+ {[%clk
0:00:06.4]} 41... Ke7 {[%clk 0:00:09.1]} 42. Ng5 {[%clk 0:00:07.5]} 42... Bxf2
{[%clk 0:00:07.9]} 43. Nxh7 {[%clk 0:00:08.6]} 43... Rh8 {[%clk 0:00:07.5]} 44.
Ng5 {[%clk 0:00:08.3]} 44... Rxh2 {[%clk 0:00:08.2]} 45. Kd3 {[%clk 0:00:09.3]}
45... Bxg3 {[%clk 0:00:07.9]} 46. Nf3 {[%clk 0:00:10.8]} 46... Rh8 {[%clk
0:00:06.5]} 47. Nd4 {[%clk 0:00:11.3]} 47... Kf6 {[%clk 0:00:07.1]} 48. Ke3
{[%clk 0:00:12.4]} 48... Be5 {[%clk 0:00:06.8]} 49. Nc6 {[%clk 0:00:12.6]} 49...
Rh3+ {[%clk 0:00:06.4]} 50. Kf2 {[%clk 0:00:13.6]} 50... Bc3 {[%clk 0:00:07]}
51. Nd8 {[%clk 0:00:12.6]} 51... Rh8 {[%clk 0:00:05.9]} 52. Nb7 {[%clk
0:00:13.6]} 52... Bb4 {[%clk 0:00:05.7]} 53. Kf3 {[%clk 0:00:13.4]} 53... Rb8
{[%clk 0:00:05.6]} 0-1

[Event "*** Titled Tuesday Blitz"]
[Site "Chess.com"]
[Date "2019.08.06"]
[Round "7"]
[White "Heineccius"]
[Black "Shahinyan_ChessMood"]
[Result "0-1"]
[WhiteElo "2556"]
[BlackElo "2763"]
[TimeControl "180+2"]
[EndTime "14:40:20 PDT"]
[Termination "Shahinyan_ChessMood won by resignation"]

1. d4 {[%clk 0:03:01.9]} 1... Nf6 {[%clk 0:02:59]} 2. c4 {[%clk 0:03:02]} 2...
c5 {[%clk 0:02:59.6]} 3. d5 {[%clk 0:03:02.6]} 3... e6 {[%clk 0:03:00.6]} 4. Nc3
{[%clk 0:03:02.6]} 4... exd5 {[%clk 0:03:02.5]} 5. cxd5 {[%clk 0:03:04]} 5... d6
{[%clk 0:03:04.4]} 6. e4 {[%clk 0:03:05]} 6... g6 {[%clk 0:03:04.3]} 7. f4
{[%clk 0:03:06.1]} 7... Bg7 {[%clk 0:03:04.2]} 8. Bb5+ {[%clk 0:03:06.8]} 8...
Nfd7 {[%clk 0:03:05.7]} 9. Nf3 {[%clk 0:03:02]} 9... a6 {[%clk 0:03:04.9]} 10.
Bd3 {[%clk 0:03:02.7]} 10... b5 {[%clk 0:03:06.4]} 11. O-O {[%clk 0:03:03.3]}
11... O-O {[%clk 0:03:07.7]} 12. Qe1 {[%clk 0:03:01.9]} 12... Qe7 {[%clk
0:03:03.1]} 13. a3 {[%clk 0:02:56.1]} 13... c4 {[%clk 0:03:00.4]} 14. Bc2 {[%clk
0:02:55.6]} 14... Nc5 {[%clk 0:03:01.7]} 15. Be3 {[%clk 0:02:42]} 15... Nbd7
{[%clk 0:02:54.6]} 16. Bd4 {[%clk 0:02:37.6]} 16... Bb7 {[%clk 0:02:38.9]} 17.
Bxg7 {[%clk 0:02:33.2]} 17... Kxg7 {[%clk 0:02:40.8]} 18. Qd2 {[%clk 0:02:28.7]}
18... Rae8 {[%clk 0:02:42.2]} 19. Rae1 {[%clk 0:02:28.5]} 19... Qd8 {[%clk
0:02:05.1]} 20. Kh1 {[%clk 0:02:22.4]} 20... Qb6 {[%clk 0:02:03]} 21. e5 {[%clk
0:02:06.4]} 21... a5 {[%clk 0:01:57.4]} 22. Qd4 {[%clk 0:01:38.9]} 22... Kg8
{[%clk 0:01:45.9]} 23. exd6 {[%clk 0:01:09.5]} 23... b4 {[%clk 0:01:31.9]} 24.
axb4 {[%clk 0:01:09.2]} 24... axb4 {[%clk 0:01:33.8]} 25. Ne4 {[%clk 0:00:33.1]}
25... Nxe4 {[%clk 0:01:17.8]} 26. Bxe4 {[%clk 0:00:29.1]} 26... Qxd6 {[%clk
0:01:14.8]} 27. Ne5 {[%clk 0:00:21.1]} 27... Nxe5 {[%clk 0:01:04.3]} 28. fxe5
{[%clk 0:00:19.4]} 28... Rxe5 {[%clk 0:01:05.7]} 29. Bf3 {[%clk 0:00:17.7]}
29... Rfe8 {[%clk 0:00:50.5]} 30. Rxe5 {[%clk 0:00:17.7]} 30... Rxe5 {[%clk
0:00:52.4]} 31. Rd1 {[%clk 0:00:17.1]} 31... Ba6 {[%clk 0:00:48.2]} 32. h3
{[%clk 0:00:15]} 32... h5 {[%clk 0:00:47.3]} 33. Qh4 {[%clk 0:00:14.5]} 33...
Re8 {[%clk 0:00:45.9]} 34. Qd4 {[%clk 0:00:14.8]} 34... Rc8 {[%clk 0:00:46.1]}
35. Rc1 {[%clk 0:00:15.6]} 35... Bb5 {[%clk 0:00:42.6]} 36. Be2 {[%clk
0:00:15.5]} 36... Rc5 {[%clk 0:00:23.3]} 37. Bxc4 {[%clk 0:00:13.9]} 37... Kh7
{[%clk 0:00:09.9]} 38. b3 {[%clk 0:00:14.1]} 38... Bxc4 {[%clk 0:00:10.9]} 39.
bxc4 {[%clk 0:00:14.8]} 39... b3 {[%clk 0:00:11.7]} 40. Rb1 {[%clk 0:00:15.1]}
40... Ra5 {[%clk 0:00:03.9]} 41. Rxb3 {[%clk 0:00:13.4]} 41... Qa6 {[%clk
0:00:04.5]} 42. Rb1 {[%clk 0:00:13.8]} 42... Ra4 {[%clk 0:00:06]} 43. Rc1 {[%clk
0:00:14.4]} 43... Ra2 {[%clk 0:00:05.3]} 44. d6 {[%clk 0:00:14.2]} 44... Qc6
{[%clk 0:00:06.7]} 45. Qd5 {[%clk 0:00:14.3]} 45... Qxd5 {[%clk 0:00:04.1]} 46.
cxd5 {[%clk 0:00:15.7]} 46... Ra8 {[%clk 0:00:05.8]} 47. Rc7 {[%clk 0:00:16.3]}
47... Kg7 {[%clk 0:00:07.3]} 48. d7 {[%clk 0:00:16.5]} 48... Rd8 {[%clk
0:00:07]} 49. g4 {[%clk 0:00:16.3]} 49... hxg4 {[%clk 0:00:06.1]} 50. hxg4
{[%clk 0:00:17.2]} 50... Kf6 {[%clk 0:00:08]} 51. Kg2 {[%clk 0:00:17.2]} 51...
Ke5 {[%clk 0:00:09.1]} 52. Kf3 {[%clk 0:00:17.9]} 52... Kxd5 {[%clk 0:00:10.6]}
53. Kf4 {[%clk 0:00:18.9]} 53... Ke6 {[%clk 0:00:12.1]} 54. Kg5 {[%clk
0:00:18.5]} 54... Rxd7 {[%clk 0:00:13.3]} 55. Rc6+ {[%clk 0:00:17.9]} 55... Ke7
{[%clk 0:00:14]} 56. Kf4 {[%clk 0:00:18.3]} 56... Rd5 {[%clk 0:00:14.7]} 57.
Rc7+ {[%clk 0:00:18.4]} 57... Ke6 {[%clk 0:00:15.5]} 58. Rc6+ {[%clk 0:00:19.4]}
58... Rd6 {[%clk 0:00:17]} 59. Rc5 {[%clk 0:00:18.8]} 59... Rd4+ {[%clk
0:00:18.4]} 60. Kf3 {[%clk 0:00:19.2]} 60... Kf6 {[%clk 0:00:17.9]} 61. Ra5
{[%clk 0:00:19.6]} 61... Rb4 {[%clk 0:00:17.9]} 62. Rc5 {[%clk 0:00:15.3]} 62...
Rb3+ {[%clk 0:00:16.9]} 63. Kf4 {[%clk 0:00:14.1]} 63... g5+ {[%clk 0:00:16.7]}
64. Ke4 {[%clk 0:00:14.9]} 64... Rg3 {[%clk 0:00:18.1]} 65. Rf5+ {[%clk
0:00:15.7]} 65... Kg6 {[%clk 0:00:19.4]} 66. Ke5 {[%clk 0:00:09.7]} 66... Rxg4
{[%clk 0:00:17.8]} 67. Rf6+ {[%clk 0:00:11]} 67... Kg7 {[%clk 0:00:19.2]} 68.
Rf1 {[%clk 0:00:10.7]} 68... Rf4 {[%clk 0:00:18.7]} 69. Rg1 {[%clk 0:00:09.5]}
69... f6+ {[%clk 0:00:19.1]} 70. Ke6 {[%clk 0:00:10.9]} 70... Kg6 {[%clk
0:00:20.5]} 71. Rg2 {[%clk 0:00:12]} 71... g4 {[%clk 0:00:21.7]} 72. Rg1 {[%clk
0:00:12.9]} 72... Kg5 {[%clk 0:00:22.9]} 73. Rg2 {[%clk 0:00:13.6]} 73... Rf3
{[%clk 0:00:21.8]} 0-1